fUSD/lending_fUSD_20251001
["ID","MTS","AMOUNT","RATE_DAILY","PERIOD"]
[388788673,1759361457069,-160.0,0.00021917,2]
[388788674,1759361457078,-151.0,0.00021917,2]
[388788675,1759361457088,-160.0,0.00021917,2]
[388788676,1759361457097,-151.0,0.00021917,2]
[388788677,1759361457107,-160.0,0.00021917,2]
[388788678,1759361457116,-500.0,0.00021917,2]
[388788679,1759361457126,-160.0,0.00021917,2]
[388788680,1759361457135,-1409.74,0.00021917,2]
[388788681,1759361457145,-160.0,0.00021917,2]
[388788682,1759361457158,-500.0,0.00021917,2]
[388788683,1759361457167,-160.0,0.00021917,2]
[388788684,1759361457178,-151.0,0.00021917,2]
[388788685,1759361457188,-160.0,0.00021917,2]
[388788686,1759361457198,-151.0,0.00021917,2]
[388788687,1759361457208,-151.0,0.00021917,2]
[388788688,1759361457218,-160.0,0.00021917,2]
[388788689,1759361457227,-151.0,0.00021917,2]
[388788690,1759361457238,-151.0,0.00021917,2]
[388788691,1759361457248,-160.0,0.00021917,2]
[388788692,1759361457258,-256.346347,0.00021917,2]
[388788693,1759361457268,-160.0,0.00021917,2]
[388788694,1759361457278,-500.0,0.00021917,2]
[388788695,1759361457288,-500.0,0.00021917,2]
[388788696,1759361457297,-160.0,0.00021917,2]
[388788697,1759361457307,-160.0,0.00021917,2]
[388788698,1759361457316,-160.0,0.00021917,2]
[388788699,1759361457326,-160.0,0.00021917,2]
[388788700,1759361457335,-2430.37,0.00021917,2]
[388788701,1759361457345,-160.0,0.00021917,2]
[388788702,1759361457354,-160.0,0.00021917,2]
[388788703,1759361457364,-160.0,0.00021917,2]
[388788704,1759361457374,-160.0,0.00021917,2]
[388788705,1759361457384,-160.0,0.00021917,2]
[388788706,1759361457394,-160.0,0.00021917,2]
[388788707,1759361457410,-160.0,0.00021917,2]
[388788708,1759361457424,-160.0,0.00021917,2]
[388788709,1759361457433,-160.0,0.00021917,2]
[388788710,1759361457443,-500.43431886,0.00021917,2]
[388788711,1759361457452,-160.0,0.00021917,2]
[388788712,1759361457462,-3048.97,0.00021917,2]
[388788713,1759361457472,-160.0,0.00021917,2]
[388788714,1759361457482,-160.0,0.00021917,2]
[388788715,1759361457493,-160.0,0.00021917,2]
[388788716,1759361457503,-500.0,0.00021917,2]
[388788717,1759361457513,-160.0,0.00021917,2]
[388788718,1759361457523,-500.0,0.00021917,2]
[388788719,1759361457532,-160.0,0.00021917,2]
[388788720,1759361457542,-500.33097562,0.00021917,2]
[388788721,1759361457552,-160.0,0.00021917,2]
[388788722,1759361457562,-4448.54,0.00021917,2]
[388788723,1759361457572,-160.0,0.00021917,2]
[388788724,1759361457582,-160.0,0.00021917,2]
[388788725,1759361457592,-160.0,0.00021917,2]
[388788726,1759361457602,-160.0,0.00021917,2]
[388788727,1759361457612,-500.0,0.00021917,2]
[388788728,1759361457621,-160.0,0.00021917,2]
[388788729,1759361457631,-160.0,0.00021917,2]
[388788730,1759361457640,-160.0,0.00021917,2]
[388788731,1759361457650,-3008.64,0.00021917,2]
[388788732,1759361457660,-160.0,0.00021917,2]
[388788733,1759361457670,-160.0,0.00021917,2]
[388788734,1759361457680,-500.0,0.00021917,2]
[388788735,1759361457689,-544.36,0.00021917,2]
[388788736,1759361457699,-160.0,0.00021917,2]
[388788737,1759361457709,-160.0,0.00021917,2]
[388788738,1759361457719,-702.61,0.00021917,2]
[388788739,1759361457729,-160.0,0.00021917,2]
[388788740,1759361457738,-1117.32,0.00021917,2]
[388788741,1759361457748,-500.0,0.00021917,2]
[388788742,1759361457757,-160.0,0.00021917,2]
[388788743,1759361457767,-2068.39,0.00021917,2]
[388788744,1759361457776,-160.0,0.00021917,2]
[388788745,1759361457786,-832.72,0.00021917,2]
[388788746,1759361457795,-151.0,0.00021917,2]
[388788747,1759361457804,-151.0,0.00021917,2]
[388788748,1759361457814,-151.0,0.00021917,2]
[388788749,1759361457824,-2975.53,0.00021917,2]
[388788750,1759361457834,-151.0,0.00021917,2]
[388788751,1759361457844,-1863.5,0.00021917,2]
[388788752,1759361457853,-151.0,0.00021917,2]
[388788753,1759361457863,-151.0,0.00021917,2]
[388788754,1759361457873,-1330.77,0.00021917,2]
[388788755,1759361457883,-2253.17,0.00021917,2]
[388788756,1759361457893,-500.0,0.00021917,2]
[388788757,1759361457905,-500.0,0.00021917,2]
[388788758,1759361457915,-500.0,0.00021917,2]
[388788759,1759361457925,-500.0,0.00021917,2]
[388788760,1759361457934,-3090.56,0.00021917,2]
[388788761,1759361457944,-500.0,0.00021917,2]
[388788762,1759361457954,-970.69,0.00021917,2]
[388788763,1759361457963,-2148.14,0.00021917,2]
[388788764,1759361457973,-1752.57,0.00021917,2]
[388788765,1759361457983,-567.48,0.00021917,2]
[388788766,1759361457992,-500.0,0.00021917,2]
[388788767,1759361458003,-1862.48,0.00021917,2]
[388788768,1759361458013,-500.0,0.00021917,2]
[388788769,1759361458028,-151.0,0.00021917,2]
[388788770,1759361458038,-1137.56,0.00021917,2]
[388788771,1759361458048,-2606.52,0.00021917,2]
[388788772,1759361458058,-500.0,0.00021917,2]
[388788773,1759361458067,-500.0,0.00021917,2]
[388788774,1759361458077,-6266.84,0.00021917,2]
[388788775,1759361458088,-8425.28,0.00021917,2]
[388788776,1759361458097,-2883.04,0.00021917,2]
[388788777,1759361458322,-500.0,0.00021917,2]
[388788778,1759361458332,-500.0,0.00021917,2]
[388788779,1759361458341,-1461.45,0.00021917,2]
[388788780,1759361458351,-31905.37,0.00021917,2]
[388788781,1759361458360,-3050.2,0.00021917,2]
[388788782,1759361458369,-151.0,0.00021917,2]
[388788783,1759361458379,-500.0,0.00021917,2]
[388788784,1759361458388,-151.0,0.00021917,2]
[388788785,1759361458397,-151.0,0.00021917,2]
[388788786,1759361458406,-151.0,0.00021917,2]
[388788787,1759361458416,-559.36228432,0.00021917,2]
[388788788,1759361458425,-151.0,0.00021917,2]
[388788789,1759361458435,-151.0,0.00021917,2]
[388788790,1759361458445,-3042.27,0.00021917,2]
[388788791,1759361458454,-151.0,0.00021917,2]
[388788792,1759361458463,-151.0,0.00021917,2]
[388788793,1759361458473,-151.0,0.00021917,2]
[388788794,1759361458482,-151.0,0.00021917,2]
[388788795,1759361458492,-151.0,0.00021917,2]
[388788796,1759361458501,-616.73,0.00021917,2]
[388788797,1759361458511,-151.0,0.00021917,2]
[388788798,1759361458520,-277.09384,0.00021917,2]
[388788799,1759361458529,-500.0,0.00021917,2]
[388788800,1759361458539,-151.0,0.00021917,2]
[388788801,1759361458548,-151.0,0.00021917,2]
[388788802,1759361458558,-500.0,0.00021917,2]
[388788803,1759361458567,-151.0,0.00021917,2]
[388788804,1759361458576,-151.0,0.00021917,2]
[388788805,1759361458586,-768.25,0.00021917,2]
[388788806,1759361458595,-500.0,0.00021917,2]
[388788807,1759361458604,-151.0,0.00021917,2]
[388788808,1759361458614,-151.0,0.00021917,2]
[388788809,1759361458623,-151.0,0.00021917,2]
[388788810,1759361458632,-7149.48,0.00021917,2]
[388788811,1759361458641,-151.0,0.00021917,2]
[388788812,1759361458649,-151.0,0.00021917,2]
[388788813,1759361458658,-151.0,0.00021917,2]
[388788814,1759361458667,-500.0,0.00021917,2]
[388788815,1759361458676,-521.86,0.00021917,2]
[388788816,1759361458683,-151.0,0.00021917,2]
[388788817,1759361458692,-151.0,0.00021917,2]
[388788818,1759361458700,-500.0,0.00021917,2]
[388788819,1759361458710,-500.0,0.00021917,2]
[388788820,1759361458719,-4590.83,0.00021917,2]
[388788821,1759361458727,-500.0,0.00021917,2]
[388788822,1759361458737,-1009.58,0.00021917,2]
[388788823,1759361458746,-5851.24,0.00021917,2]
[388788824,1759361458755,-2303.65,0.00021917,2]
[388788825,1759361458764,-12631.58,0.00021917,2]
[388788826,1759361458773,-500.0,0.00021917,2]
[388788827,1759361458783,-500.0,0.00021917,2]
[388788828,1759361458793,-500.0,0.00021917,2]
[388788829,1759361458802,-151.0,0.00021917,2]
[388788830,1759361458811,-151.0,0.00021917,2]
[388788831,1759361458820,-500.0,0.00021917,2]
[388788832,1759361458829,-1968.78,0.00021917,2]
[388788833,1759361458838,-151.0,0.00021917,2]
[388788834,1759361458848,-151.0,0.00021917,2]
[388788835,1759361458857,-151.0,0.00021917,2]
[388788836,1759361458867,-151.0,0.00021917,2]
[388788837,1759361458877,-1021.19,0.00021917,2]
[388788838,1759361458886,-151.0,0.00021917,2]
[388788839,1759361458895,-500.0,0.00021917,2]
[388788840,1759361458910,-1753.11,0.00021917,2]
[388788841,1759361458920,-151.0,0.00021917,2]
[388788842,1759361458929,-197.048328,0.00021917,2]
[388788843,1759361458938,-238.31536,0.00021917,2]
[388788844,1759361458949,-238.31536,0.00021917,2]
[388788845,1759361458958,-238.31536,0.00021917,2]
[388788846,1759361458968,-238.31536,0.00021917,2]
[388788847,1759361458977,-7208.75,0.00021917,2]
[388788848,1759361458987,-238.31536,0.00021917,2]
[388788849,1759361458996,-500.0,0.00021917,2]
[388788850,1759361459006,-238.31536,0.00021917,2]
[388788851,1759361459015,-500.0,0.00021917,2]
[388788852,1759361459024,-151.0,0.00021917,2]
[388788853,1759361459033,-151.0,0.00021917,2]
[388788854,1759361459042,-238.31536,0.00021917,2]
[388788855,1759361459052,-151.0,0.00021917,2]
[388788856,1759361459061,-152.632766,0.00021917,2]
[388788857,1759361459070,-238.31536,0.00021917,2]
[388788858,1759361459079,-500.0,0.00021917,2]
[388788859,1759361459088,-151.0,0.00021917,2]
[388788860,1759361459098,-151.0,0.00021917,2]
[388788861,1759361459107,-238.31536,0.00021917,2]
[388788862,1759361459116,-238.31536,0.00021917,2]
[388788863,1759361459125,-151.0,0.00021917,2]
[388788864,1759361459134,-151.0,0.00021917,2]
[388788865,1759361459143,-238.31536,0.00021917,2]
[388788866,1759361459152,-151.0,0.00021917,2]
[388788867,1759361459162,-151.0,0.00021917,2]
[388788868,1759361459171,-238.31536,0.00021917,2]
[388788869,1759361459181,-151.0,0.00021917,2]
[388788870,1759361459190,-500.0,0.00021917,2]
[388788871,1759361459199,-11893.35,0.00021917,2]
[388788872,1759361459209,-151.0,0.00021917,2]
[388788873,1759361459218,-238.31536,0.00021917,2]
[388788874,1759361459227,-238.31536,0.00021917,2]
[388788875,1759361459236,-500.0,0.00021917,2]
[388788876,1759361459245,-500.0,0.00021917,2]
[388788877,1759361459254,-151.0,0.00021917,2]
[388788878,1759361459263,-238.31536,0.00021917,2]
[388788879,1759361459272,-151.0,0.00021917,2]
[388788880,1759361459281,-238.31536,0.00021917,2]
[388788881,1759361459290,-151.0,0.00021917,2]
[388788882,1759361459300,-151.0,0.00021917,2]
[388788883,1759361459309,-1655.7,0.00021917,2]
[388788884,1759361459319,-151.0,0.00021917,2]
[388788885,1759361459328,-5581.43,0.00021917,2]
[388788886,1759361459337,-6634.47,0.00021917,2]
[388788887,1759361459346,-2122.84,0.00021917,2]
[388788888,1759361459355,-551.02,0.00021917,2]
[388788889,1759361459364,-151.0,0.00021917,2]
[388788890,1759361459373,-151.0,0.00021917,2]
[388788891,1759361459382,-557.38,0.00021917,2]
[388788892,1759361459392,-500.0,0.00021917,2]
[388788893,1759361459401,-151.0,0.00021917,2]
[388788894,1759361459411,-151.0,0.00021917,2]
[388788895,1759361459420,-151.0,0.00021917,2]
[388788896,1759361459429,-500.0,0.00021917,2]
[388788897,1759361459438,-1804.99,0.00021917,2]
[388788898,1759361459447,-151.0,0.00021917,2]
[388788899,1759361459456,-296.746062,0.00021917,2]
[388788900,1759361459466,-8722.61,0.00021917,2]
[388788901,1759361459475,-577.02,0.00021917,2]
[388788902,1759361459483,-151.0,0.00021917,2]
[388788903,1759361459492,-536.07,0.00021917,2]
[388788904,1759361459501,-151.0,0.00021917,2]
[388788905,1759361459511,-1924.17,0.00021917,2]
[388788906,1759361459520,-151.0,0.00021917,2]
[388788907,1759361459529,-3756.23,0.00021917,2]
[388788908,1759361459539,-151.0,0.00021917,2]
[388788909,1759361459548,-151.0,0.00021917,2]
[388788910,1759361459557,-152.835965,0.00021917,2]
[388788911,1759361459566,-3266.0,0.00021917,2]
[388788912,1759361459575,-1097.92,0.00021917,2]
[388788913,1759361459584,-3655.32,0.00021917,2]
[388788914,1759361459593,-500.0,0.00021917,2]
[388788915,1759361459603,-733.37,0.00021917,2]
[388788916,1759361459611,-500.0,0.00021917,2]
[388788917,1759361459620,-834.03,0.00021917,2]
[388788918,1759361459629,-7888.84,0.00021917,2]
[388788919,1759361459638,-2250.04,0.00021917,2]
[388788920,1759361459647,-2390.31,0.00021917,2]
[388788921,1759361459656,-1736.58,0.00021917,2]
[388788922,1759361459665,-151.0,0.00021917,2]
[388788923,1759361459674,-705.6,0.00021917,2]
[388788924,1759361459683,-151.0,0.00021917,2]
[388788925,1759361459692,-151.0,0.00021917,2]
[388788926,1759361459705,-151.0,0.00021917,2]
[388788927,1759361459714,-5890.34,0.00021917,2]
[388788928,1759361459723,-151.0,0.00021917,2]
[388788929,1759361459732,-6467.22,0.00021917,2]
[388788930,1759361459741,-151.0,0.00021917,2]
[388788931,1759361459751,-151.0,0.00021917,2]
[388788932,1759361459760,-151.0,0.00021917,2]
[388788933,1759361459769,-500.0,0.00021917,2]
[388788934,1759361459778,-151.0,0.00021917,2]
[388788935,1759361459787,-151.0,0.00021917,2]
[388788936,1759361459796,-1414.51,0.00021917,2]
[388788937,1759361459804,-151.0,0.00021917,2]
[388788938,1759361459813,-151.0,0.00021917,2]
[388788939,1759361459822,-151.0,0.00021917,2]
[388788940,1759361459831,-151.0,0.00021917,2]
[388788941,1759361459840,-900.56,0.00021917,2]
[388788942,1759361459849,-6166.59,0.00021917,2]
[388788943,1759361459858,-151.0,0.00021917,2]
[388788944,1759361459867,-500.0,0.00021917,2]
[388788945,1759361459876,-798.65,0.00021917,2]
[388788946,1759361459884,-211.681076,0.00021917,2]
[388788947,1759361459893,-500.0,0.00021917,2]
[388788948,1759361459905,-5409.06,0.00021917,2]
[388788949,1759361459914,-3086.42,0.00021917,2]
[388788950,1759361459924,-7631.39,0.00021917,2]
[388788951,1759361459933,-500.0,0.00021917,2]
[388788952,1759361459942,-500.0,0.00021917,2]
[388788953,1759361459951,-500.0,0.00021917,2]
[388788954,1759361459959,-2858.35,0.00021917,2]
[388788955,1759361459968,-151.0,0.00021917,2]
[388788956,1759361459976,-2485.7,0.00021917,2]
[388788957,1759361459985,-999.84,0.00021917,2]
[388788958,1759361459994,-151.0,0.00021917,2]
[388788959,1759361460002,-151.0,0.00021917,2]
[388788960,1759361460012,-151.0,0.00021917,2]
[388788961,1759361460021,-151.0,0.00021917,2]
[388788962,1759361460030,-153.977962,0.00021917,2]
[388788963,1759361460039,-1345.33,0.00021917,2]
[388788964,1759361460049,-1376.05,0.00021917,2]
[388788965,1759361460059,-500.0,0.00021917,2]
[388788966,1759361460068,-766.89,0.00021917,2]
[388788967,1759361460078,-3013.31,0.00021917,2]
[388788968,1759361460087,-500.0,0.00021917,2]
[388788969,1759361460096,-3678.61,0.00021917,2]
[388788970,1759361460105,-500.0,0.00021917,2]
[388788971,1759361460114,-7284.65,0.00021917,2]
[388788972,1759361460123,-2956.51,0.00021917,2]
[388788973,1759361460132,-4942.17,0.00021917,2]
[388788974,1759361460141,-426.68,0.00021917,2]
[388788975,1759361460150,-514.87,0.00021917,2]
[388788976,1759361460160,-6141.65,0.00021917,2]
[388788977,1759361460169,-500.0,0.00021917,2]
[388788978,1759361460178,-831.21,0.00021917,2]
[388788979,1759361460187,-2019.16,0.00021917,2]
[388788980,1759361460197,-3965.251828,0.00021917,2]
[388788981,1759361460206,-3965.251828,0.00021917,2]
[388788982,1759361460215,-3965.251828,0.00021917,2]
[388788983,1759361460224,-3965.251828,0.00021917,2]
[388788984,1759361460233,-3394.33,0.00021917,2]
[388788985,1759361460243,-3965.251828,0.00021917,2]
[388788986,1759361460252,-3965.251828,0.00021917,2]
[388788987,1759361460261,-3965.251828,0.00021917,2]
[388788988,1759361460270,-1856.05,0.00021917,2]
[388788989,1759361460279,-11390.51,0.00021917,2]
[388788990,1759361460288,-3965.251828,0.00021917,2]
[388788991,1759361460298,-3965.251828,0.00021917,2]
[388788992,1759361460307,-2516.56,0.00021917,2]
[388788993,1759361460317,-3965.251828,0.00021917,2]
[388788994,1759361460326,-2770.08,0.00021917,2]
[388788995,1759361460335,-3965.251828,0.00021917,2]
[388788996,1759361460345,-3965.251828,0.00021917,2]
[388788997,1759361460354,-500.0,0.00021917,2]
[388788998,1759361460363,-2704.99,0.00021917,2]
[388788999,1759361460372,-284.446947,0.00021917,2]
[388789000,1759361460382,-1535.59,0.00021917,2]
[388789001,1759361460391,-3965.251828,0.00021917,2]
[388789002,1759361460400,-3965.251828,0.00021917,2]
[388789003,1759361460409,-3965.251828,0.00021917,2]
[388789004,1759361460418,-3965.251828,0.00021917,2]
[388789005,1759361460427,-568.41,0.00021917,2]
[388789006,1759361460436,-2560.37,0.00021917,2]
[388789007,1759361460445,-2568.293926,0.00021917,2]
[388789008,1759361460455,-754.86,0.00021917,2]
[388789009,1759361460464,-2568.293926,0.00021917,2]
[388789010,1759361460473,-3199.27,0.00021917,2]
[388789011,1759361460483,-2568.293926,0.00021917,2]
[388789012,1759361460491,-1380.42839466,0.00021917,2]
[388789013,1759361461171,-1187.86553134,0.00021917,2]
[388789014,1759361461181,-1464.37,0.00021917,2]
[388789015,1759361461190,-3026.4,0.00021917,2]
[388789016,1759361461200,-7776.68,0.00021917,2]
[388789017,1759361461209,-2568.293926,0.00021917,2]
[388789018,1759361461218,-500.0,0.00021917,2]
[388789019,1759361461228,-2568.293926,0.00021917,2]
[388789020,1759361461237,-1785.51,0.00021917,2]
[388789021,1759361461247,-2568.293926,0.00021917,2]
[388789022,1759361461256,-2554.95,0.00021917,2]
[388789023,1759361461265,-2568.293926,0.00021917,2]
[388789024,1759361461274,-151.0,0.00021917,2]
[388789025,1759361461283,-2568.293926,0.00021917,2]
[388789026,1759361461292,-151.0,0.00021917,2]
[388789027,1759361461301,-2568.293926,0.00021917,2]
[388789028,1759361461310,-151.0,0.00021917,2]
[388789029,1759361461319,-2568.293926,0.00021917,2]
[388789030,1759361461328,-151.0,0.00021917,2]
[388789031,1759361461337,-2208.84,0.00021917,2]
[388789032,1759361461346,-2568.293926,0.00021917,2]
[388789033,1759361461355,-151.0,0.00021917,2]
[388789034,1759361461364,-2568.293926,0.00021917,2]
[388789035,1759361461373,-977.59,0.00021917,2]
[388789036,1759361461382,-151.0,0.00021917,2]
[388789037,1759361461391,-2568.293926,0.00021917,2]
[388789038,1759361461400,-151.0,0.00021917,2]
[388789039,1759361461409,-266.253751,0.00021917,2]
[388789040,1759361461418,-2568.293926,0.00021917,2]
[388789041,1759361461427,-151.0,0.00021917,2]
[388789042,1759361461435,-266.253751,0.00021917,2]
[388789043,1759361461445,-2568.29392,0.00021917,2]
[388789044,1759361461455,-965.6,0.00021917,2]
[388789045,1759361461464,-266.253751,0.00021917,2]
[388789046,1759361461473,-151.0,0.00021917,2]
[388789047,1759361461482,-266.253751,0.00021917,2]
[388789048,1759361461491,-151.0,0.00021917,2]
[388789049,1759361461500,-151.0,0.00021917,2]
[388789050,1759361461509,-151.0,0.00021917,2]
[388789051,1759361461518,-840.73,0.00021917,2]
[388789052,1759361461527,-4413.88,0.00021917,2]
[388789053,1759361461536,-266.253751,0.00021917,2]
[388789054,1759361461545,-151.0,0.00021917,2]
[388789055,1759361461555,-200.84282,0.00021917,2]
[388789056,1759361461564,-266.253751,0.00021917,2]
[388789057,1759361461573,-151.0,0.00021917,2]
[388789058,1759361461583,-151.0,0.00021917,2]
[388789059,1759361461592,-151.0,0.00021917,2]
[388789060,1759361461601,-266.253751,0.00021917,2]
[388789061,1759361461611,-151.0,0.00021917,2]
[388789062,1759361461621,-151.0,0.00021917,2]
[388789063,1759361461630,-151.0,0.00021917,2]
[388789064,1759361461640,-266.253751,0.00021917,2]
[388789065,1759361461650,-151.0,0.00021917,2]
[388789066,1759361461659,-151.0,0.00021917,2]
[388789067,1759361461669,-151.0,0.00021917,2]
[388789068,1759361461678,-151.0,0.00021917,2]
[388789069,1759361461687,-266.253751,0.00021917,2]
[388789070,1759361461697,-151.0,0.00021917,2]
[388789071,1759361461707,-1383.3,0.00021917,2]
[388789072,1759361461717,-266.253751,0.00021917,2]
[388789073,1759361461726,-8374.15,0.00021917,2]
[388789074,1759361461736,-151.0,0.00021917,2]
[388789075,1759361461870,-266.253751,0.00021917,2]
[388789076,1759361461879,-151.0,0.00021917,2]
[388789077,1759361461888,-249.206761,0.00021917,2]
[388789078,1759361461897,-151.0,0.00021917,2]
[388789079,1759361461906,-151.0,0.00021917,2]
[388789080,1759361461915,-266.253751,0.00021917,2]
[388789081,1759361461924,-151.0,0.00021917,2]
[388789082,1759361461934,-249.206761,0.00021917,2]
[388789083,1759361461943,-1638.51,0.00021917,2]
[388789084,1759361461952,-1225.9,0.00021917,2]
[388789085,1759361461962,-249.206761,0.00021917,2]
[388789086,1759361461971,-151.0,0.00021917,2]
[388789087,1759361461980,-151.0,0.00021917,2]
[388789088,1759361461990,-266.253751,0.00021917,2]
[388789089,1759361461999,-249.206761,0.00021917,2]
[388789090,1759361462009,-151.0,0.00021917,2]
[388789091,1759361462019,-151.0,0.00021917,2]
[388789092,1759361462029,-151.0,0.00021917,2]
[388789093,1759361462039,-266.253751,0.00021917,2]
[388789094,1759361462049,-159.618332,0.00021917,2]
[388789095,1759361462059,-2066.87,0.00021917,2]
[388789096,1759361462068,-151.0,0.00021917,2]
[388789097,1759361462078,-3028.45,0.00021917,2]
[388789098,1759361462087,-500.0,0.00021917,2]
[388789099,1759361462097,-266.253751,0.00021917,2]
[388789100,1759361462107,-151.0,0.00021917,2]
[388789101,1759361462116,-249.206761,0.00021917,2]
[388789102,1759361462126,-266.253749,0.00021917,2]
[388789103,1759361462135,-151.0,0.00021917,2]
[388789104,1759361462145,-249.206761,0.00021917,2]
[388789105,1759361462154,-500.0,0.00021917,2]
[388789106,1759361462164,-249.206761,0.00021917,2]
[388789107,1759361462173,-151.0,0.00021917,2]
[388789108,1759361462182,-249.206761,0.00021917,2]
[388789109,1759361462191,-151.0,0.00021917,2]
[388789110,1759361462200,-999.8,0.00021917,2]
[388789111,1759361462210,-249.206761,0.00021917,2]
[388789112,1759361462219,-151.0,0.00021917,2]
[388789113,1759361462228,-249.206761,0.00021917,2]
[388789114,1759361462238,-151.0,0.00021917,2]
[388789115,1759361462247,-151.0,0.00021917,2]
[388789116,1759361462256,-249.206761,0.00021917,2]
[388789117,1759361462265,-2082.53,0.00021917,2]
[388789118,1759361462275,-151.0,0.00021917,2]
[388789119,1759361462284,-185.344515,0.00021917,2]
[388789120,1759361462293,-249.206761,0.00021917,2]
[388789121,1759361462302,-249.206761,0.00021917,2]
[388789122,1759361462312,-249.206761,0.00021917,2]
[388789123,1759361462322,-249.206761,0.00021917,2]
[388789124,1759361462331,-523.79,0.00021917,2]
[388789125,1759361462341,-249.206752,0.00021917,2]
[388789126,1759361462350,-151.0,0.00021917,2]
[388789127,1759361462359,-1165.0,0.00021917,2]
[388789128,1759361462368,-151.0,0.00021917,2]
[388789129,1759361462377,-500.0,0.00021917,2]
[388789130,1759361462387,-500.0,0.00021917,2]
[388789131,1759361462396,-151.0,0.00021917,2]
[388789132,1759361462405,-151.0,0.00021917,2]
[388789133,1759361462414,-151.0,0.00021917,2]
[388789134,1759361462425,-151.0,0.00021917,2]
[388789135,1759361462434,-156.343918,0.00021917,2]
[388789136,1759361462443,-151.0,0.00021917,2]
[388789137,1759361462452,-2026.32,0.00021917,2]
[388789138,1759361462462,-500.0,0.00021917,2]
[388789139,1759361462472,-151.0,0.00021917,2]
[388789140,1759361462481,-151.0,0.00021917,2]
[388789141,1759361462490,-3717.11,0.00021917,2]
[388789142,1759361462499,-4892.65,0.00021917,2]
[388789143,1759361462509,-151.0,0.00021917,2]
[388789144,1759361462518,-151.0,0.00021917,2]
[388789145,1759361462528,-151.0,0.00021917,2]
[388789146,1759361462538,-151.0,0.00021917,2]
[388789147,1759361462547,-931.82,0.00021917,2]
[388789148,1759361462559,-151.0,0.00021917,2]
[388789149,1759361462569,-151.0,0.00021917,2]
[388789150,1759361462579,-1766.14,0.00021917,2]
[388789151,1759361462588,-500.0,0.00021917,2]
[388789152,1759361462598,-151.0,0.00021917,2]
[388789153,1759361462607,-151.0,0.00021917,2]
[388789154,1759361462616,-487.766599,0.00021917,2]
[388789155,1759361462625,-151.0,0.00021917,2]
[388789156,1759361462634,-500.0,0.00021917,2]
[388789157,1759361462644,-487.766599,0.00021917,2]
[388789158,1759361462653,-237.1256,0.00021917,2]
[388789159,1759361462662,-151.0,0.00021917,2]
[388789160,1759361462671,-2835.22,0.00021917,2]
[388789161,1759361462680,-487.766599,0.00021917,2]
[388789162,1759361462689,-151.0,0.00021917,2]
[388789163,1759361462699,-487.766599,0.00021917,2]
[388789164,1759361462708,-151.0,0.00021917,2]
[388789165,1759361462717,-151.0,0.00021917,2]
[388789166,1759361462727,-500.0,0.00021917,2]
[388789167,1759361462736,-487.766599,0.00021917,2]
[388789168,1759361462745,-3274.2,0.00021917,2]
[388789169,1759361462755,-151.0,0.00021917,2]
[388789170,1759361462764,-487.766599,0.00021917,2]
[388789171,1759361462773,-228.592609,0.00021917,2]
[388789172,1759361462782,-487.766599,0.00021917,2]